bitfinex-derivatives/quotes_ETHF0:USTF0_20240822
["timestamp","ask_amount","ask_price","bid_price","bid_amount"]
[1724366494228,0.00012205,2623.5,2623.4,9.6679]
[1724366494519,0.00012205,2623.5,2623.4,10.66557916]
[1724366494717,0.00012205,2623.5,2623.4,18.0036071]
[1724366495122,0.00012205,2623.5,2623.4,19.9858608]
[1724366495825,0.00012205,2623.5,2623.4,19.98584509]
[1724366496013,0.00012205,2623.5,2623.4,19.985845]
[1724366497107,0.00012205,2623.5,2623.4,23.79828169]
[1724366497311,0.00012205,2623.5,2623.4,14.985845]
[1724366498227,0.00012205,2623.5,2623.4,19.98572206]
[1724366498915,0.00012205,2623.5,2623.4,14.98572206]
[1724366499119,0.00012205,2623.5,2623.4,12.52691121]
[1724366500719,0.00012205,2623.5,2623.4,10.61412121]
[1724366500920,0.00012205,2623.5,2623.4,7.79968713]
[1724366501121,0.00012205,2623.5,2623.4,6.85348232]
[1724366501823,0.00012205,2623.5,2623.4,10.66548232]
[1724366502531,0.00012205,2623.5,2623.4,12.57196512]
[1724366503616,0.00012205,2623.5,2623.4,12.21776512]
[1724366503819,0.00012205,2623.5,2623.4,11.5799828]
[1724366504122,0.00012205,2623.5,2623.4,13.07619936]
[1724366507532,0.00012205,2623.5,2623.4,9.26419936]
[1724366507719,0.00012205,2623.5,2623.4,9.26416931]
[1724366508225,0.00012205,2623.5,2623.4,9.26416924]
[1724366512827,0.00012205,2623.5,2623.4,9.26414488]
[1724366513034,0.00012205,2623.5,2623.4,7.40812832]
[1724366513228,0.00012205,2623.5,2623.4,8.4061347]
[1724366514128,0.00012205,2623.5,2623.4,6.49970638]
[1724366515736,0.96012205,2623.5,2623.4,3.58891]
[1724366516037,0.96012205,2623.5,2623.2,0.38114]
[1724366516038,4.77212205,2623.5,2623.2,0.38114]
[1724366516225,2.0242,2623.4,2623.2,0.38114]
[1724366516626,2.0242,2623.4,2623.3,0.38113]
[1724366518835,1.0642,2623.4,2623.3,0.38113]
[1724366521635,4.8762,2623.4,2623.2,0.38113]
[1724366521941,5.8362,2623.4,2623.3,0.38113]
[1724366522131,2.0242,2623.4,2623.3,0.38113]
[1724366522332,5.8362,2623.4,2623.3,0.38113]
[1724366523132,4.8762,2623.4,2623.3,0.96]
[1724366523334,5.8362,2623.4,2623.1,0.38114]
[1724366523537,2.40532,2623.4,2623.1,0.38114]
[1724366525735,2.40532,2623.4,2623.0,0.96]
[1724366525936,2.0242,2623.4,2623.2,0.38113]
[1724366526244,2.0242,2623.4,2623.3,0.38113]
[1724366526739,5.8362,2623.4,2623.3,0.38113]
[1724366527444,4.8762,2623.4,2623.3,0.38113]
[1724366527955,3.812,2623.4,2623.3,0.38113]
[1724366528146,4.9042,2623.4,2623.3,0.38113]
[1724366533440,0.00012205,2623.5,2623.4,0.38111]
[1724366533641,0.35992205,2623.5,2623.4,0.74271]
[1724366539438,5.13192205,2623.5,2623.2,0.7135]
[1724366539639,0.76422,2623.4,2623.2,1.09463]
[1724366539947,0.3831,2623.4,2623.3,0.38113]
[1724366542044,1.72421,2623.4,2623.2,0.38113]
[1724366542246,0.72694,2623.3,2623.1,0.38115]
[1724366542549,0.72694,2623.3,2623.0,3.2078]
[1724366542550,0.72694,2623.3,2623.0,3.97056]
[1724366542743,0.3512,2623.2,2623.0,3.97056]
[1724366542939,0.3512,2623.2,2623.1,0.38116]
[1724366544139,0.3831,2623.4,2623.1,0.38116]
[1724366544342,1.33152205,2623.5,2623.1,0.96]
[1724366544545,1.33152205,2623.5,2623.3,0.38112]
[1724366545053,1.33152205,2623.5,2623.4,0.7607]
[1724366545241,1.33152205,2623.5,2623.4,1.14181]
[1724366547446,0.37152205,2623.5,2623.4,1.14181]
[1724366547647,0.00012205,2623.5,2623.4,4.34961]
[1724366547947,0.00012205,2623.5,2623.4,1.14181]
[1724366548736,0.00012205,2623.5,2623.4,0.38111]
[1724366549344,0.00012205,2623.5,2623.3,0.38112]
[1724366549345,1.34122205,2623.5,2623.3,0.38112]
[1724366549546,0.38122205,2623.5,2623.1,4.5243]
[1724366549744,0.38122205,2623.5,2623.4,0.38111]
[1724366550464,0.00012205,2623.5,2623.4,0.38111]
[1724366550947,0.38122205,2623.5,2623.3,0.38112]
[1724366551341,0.3686,2623.4,2623.3,0.38112]
[1724366560848,0.3686,2623.4,2623.3,1.37912638]
[1724366561456,0.3686,2623.4,2623.3,0.38112]
[1724366562449,0.00012205,2623.5,2623.4,0.38111]
[1724366563154,0.00012205,2623.5,2623.4,0.75161]
[1724366564752,0.00012205,2623.5,2623.4,0.38111]
[1724366566851,0.00012205,2623.5,2623.4,1.714]
[1724366567158,0.00012205,2623.5,2623.4,6.87980638]
[1724366567348,0.00012205,2623.5,2623.4,10.69180638]
[1724366568357,0.00012205,2623.5,2623.4,6.87980638]
[1724366568557,0.00012205,2623.5,2623.4,7.78838042]
[1724366569059,0.00012205,2623.5,2623.4,6.83559042]
[1724366569258,0.00012205,2623.5,2623.4,8.33178135]
[1724366570059,0.00012205,2623.5,2623.4,6.83556479]
[1724366570256,0.00012205,2623.5,2623.4,8.33178135]
[1724366570559,0.00012205,2623.5,2623.4,12.07698119]
[1724366570745,0.00012205,2623.5,2623.4,14.05923489]
[1724366570952,0.00012205,2623.5,2623.4,18.82487449]
[1724366571148,1.1286,2624.2,2624.0,0.38101]
[1724366571354,1.1286,2624.2,2624.1,0.3594]
[1724366571952,1.1286,2624.2,2624.1,0.74041]
[1724366572149,1.13141719,2624.2,2624.1,0.74041]
[1724366572355,25.67721719,2624.2,2624.1,0.74041]
[1724366572555,25.67721719,2624.2,2624.1,1.12401]
[1724366572863,25.30281719,2624.2,2624.1,2.08401]
[1724366573163,25.30281719,2624.2,2624.1,5.89441]
[1724366573359,25.30281719,2624.2,2624.1,2.08401]
[1724366573557,25.30281719,2624.2,2624.1,5.89441]
[1724366573757,25.30281719,2624.2,2624.1,2.08401]
[1724366573962,25.30281719,2624.2,2624.1,5.89441]
[1724366575260,25.30281719,2624.2,2624.1,2.08401]
[1724366575562,25.30281719,2624.2,2624.1,4.1698]
[1724366575863,25.30281719,2624.2,2624.0,0.74772]
[1724366575864,30.07321719,2624.2,2623.8,4.1678]
[1724366576068,1.3347,2624.1,2623.8,1.3178]
[1724366576258,25.30281719,2624.2,2623.8,1.3178]
[1724366576259,25.30281719,2624.2,2623.9,4.1678]
[1724366576452,25.30281719,2624.2,2623.9,0.96]
[1724366576656,25.30281719,2624.2,2624.0,1.69642]
[1724366577057,25.30281719,2624.2,2624.0,1.3154]
[1724366577668,0.3822,2624.1,2624.0,1.3154]
[1724366577971,0.3822,2624.1,2624.0,1.69642]
[1724366580981,25.30281719,2624.2,2624.1,0.38101]
[1724366581185,25.30281719,2624.2,2624.1,1.34101]
[1724366581370,25.30281719,2624.2,2624.1,2.08031]
[1724366593676,25.30281719,2624.2,2623.6,1.95269815]
[1724366593878,0.3497,2624.1,2624.0,0.96]
[1724366594079,1.46391,2624.1,2624.0,0.96]
[1724366594388,1.0829,2624.1,2624.0,0.96]
[1724366594591,0.3497,2624.1,2624.0,1.34102]
[1724366595090,25.30281719,2624.2,2624.1,0.38101]
[1724366595279,25.30281719,2624.2,2624.1,1.11161]
[1724366595588,25.30281719,2624.2,2624.1,1.46681]
[1724366596286,25.30281719,2624.2,2624.1,5.27721]
[1724366597393,25.30281719,2624.2,2624.1,2.42681]
[1724366600791,25.30281719,2624.2,2624.1,7.18974]
[1724366601789,25.30281719,2624.2,2624.1,12.18974]
[1724366601995,25.30281719,2624.2,2624.1,6.23721]
[1724366601996,0.00281719,2624.2,2624.1,6.23721]
[1724366603397,0.00281719,2624.2,2624.1,5.27721]
[1724366603589,0.00281719,2624.2,2624.1,6.23721]
[1724366604289,0.00281719,2624.2,2624.1,0.96]
[1724366604497,0.37701719,2624.2,2624.1,1.34101]
[1724366604999,25.67701719,2624.2,2624.1,1.34101]
[1724366608197,25.30281719,2624.2,2624.1,1.34101]
[1724366609297,25.30281719,2624.2,2624.1,1.71941]
[1724366611997,25.30281719,2624.2,2624.1,1.34101]
[1724366618197,25.30281719,2624.2,2624.1,2.34100815]
[1724366618793,25.30281719,2624.2,2624.1,1.34101]
[1724366618996,25.30281719,2624.2,2624.1,2.34100815]
[1724366619307,25.30281719,2624.2,2624.1,1.34101]
[1724366619503,25.30281719,2624.2,2624.1,2.34100815]
[1724366621507,25.30281719,2624.2,2624.1,4.2471283]
[1724366621703,0.00281719,2624.2,2624.1,5.69965738]
[1724366622008,0.00281719,2624.2,2624.1,8.48656414]
[1724366622506,0.00281719,2624.2,2624.1,10.48656045]
[1724366622899,0.00281719,2624.2,2624.1,8.48656414]
[1724366623101,0.00281719,2624.2,2624.1,10.48656045]
[1724366623297,0.00281719,2624.2,2624.1,10.01005646]
[1724366623610,0.00281719,2624.2,2624.1,13.21785646]
[1724366623803,0.00281719,2624.2,2624.1,13.69434344]
[1724366623999,0.00281719,2624.2,2624.1,10.48654344]
[1724366624205,0.00281719,2624.2,2624.1,13.69434344]
[1724366625008,0.00281719,2624.2,2624.1,13.6941706]
[1724366625416,0.00281719,2624.2,2624.1,18.45854481]
[1724366625714,0.00281719,2624.2,2624.1,23.45854481]
[1724366625914,0.00281719,2624.2,2624.1,23.4577746]
[1724366626410,0.00281719,2624.2,2624.1,22.5052446]
[1724366627111,0.00281719,2624.2,2624.1,22.50522581]
[1724366627505,0.00281719,2624.2,2624.1,13.6933816]
[1724366629504,0.00281719,2624.2,2624.1,9.8829816]
[1724366629709,0.00281719,2624.2,2624.1,13.6933816]
[1724366630016,0.00281719,2624.2,2624.1,13.69336905]
[1724366630906,0.00281719,2624.2,2624.1,13.21690086]
[1724366631306,0.00281719,2624.2,2624.1,13.69337308]
[1724366631917,0.00281719,2624.2,2624.1,12.74084308]
[1724366634714,0.00281719,2624.2,2624.1,12.26437086]
[1724366635313,0.00281719,2624.2,2624.1,10.74162564]
[1724366636021,0.00281719,2624.2,2624.1,7.53382564]
[1724366636322,0.00281719,2624.2,2624.1,10.74162564]
[1724366636916,0.00281719,2624.2,2624.1,12.2405455]
[1724366638419,0.00281719,2624.2,2624.1,7.95366462]
[1724366638611,0.00281719,2624.2,2624.1,8.43014352]
[1724366639121,0.00281719,2624.2,2624.1,5.22234352]
[1724366639323,0.00281719,2624.2,2624.1,7.95366462]
[1724366639617,0.00281719,2624.2,2624.1,8.43014425]
[1724366639815,0.00281719,2624.2,2624.1,7.95366462]
[1724366640519,0.00281719,2624.2,2624.1,6.11319437]
[1724366640815,0.74461719,2624.2,2624.1,5.16725961]
[1724366641021,1.09201719,2624.2,2624.1,7.07339672]
[1724366641721,1.09201719,2624.2,2624.1,7.45440672]
[1724366642715,1.09201719,2624.2,2624.1,7.95386697]
[1724366642915,1.09201719,2624.2,2624.1,7.95377749]
[1724366644327,1.09201719,2624.2,2624.1,6.45485763]
[1724366644823,0.00281719,2624.2,2624.1,8.93058134]
[1724366645021,0.00281719,2624.2,2624.1,6.45485763]
[1724366645422,0.00281719,2624.2,2624.1,8.9305816]
[1724366645720,0.00281719,2624.2,2624.1,9.8831116]
[1724366647128,0.00281719,2624.2,2624.1,13.6949406]
[1724366647321,0.00281719,2624.2,2624.1,12.7424106]
[1724366647515,0.00281719,2624.2,2624.1,7.02453397]
[1724366647727,0.00281719,2624.2,2624.1,12.7423145]
[1724366648630,0.00281719,2624.2,2624.1,12.74229376]
[1724366649824,0.00281719,2624.2,2624.1,8.93044007]
[1724366650129,0.00281719,2624.2,2624.1,12.74235037]
[1724366650318,0.00281719,2624.2,2624.1,8.93044007]
[1724366650721,0.00281719,2624.2,2624.1,12.74228085]
[1724366650929,0.00281719,2624.2,2624.1,6.93121397]
[1724366651227,0.00281719,2624.2,2624.1,7.88374397]
[1724366651734,0.00281719,2624.2,2624.1,4.67594397]
[1724366651924,0.00281719,2624.2,2624.1,7.88374397]
[1724366652121,0.00281719,2624.2,2624.1,6.93121397]
[1724366652425,0.00281719,2624.2,2624.1,4.54881]
[1724366652725,0.00281719,2624.2,2624.1,6.93121505]
[1724366654831,0.00281719,2624.2,2624.1,3.72341505]
[1724366656323,0.00281719,2624.2,2624.1,3.24693292]
[1724366656524,0.00281719,2624.2,2624.1,3.72342338]
[1724366656831,0.00281719,2624.2,2624.1,3.72342334]
[1724366657335,0.00281719,2624.2,2624.1,3.72344688]
[1724366658822,0.00281719,2624.2,2624.1,5.22261485]
[1724366659032,0.00281719,2624.2,2624.1,5.72267298]
[1724366660124,0.00281719,2624.2,2624.1,5.24618256]
[1724366660321,0.00281719,2624.2,2624.1,5.72268098]
[1724366660835,0.00281719,2624.2,2624.1,9.53466716]
[1724366661530,0.00281719,2624.2,2624.1,13.25090106]
[1724366661736,0.38831135,2624.5,2624.4,0.38097]
[1724366661928,0.38831135,2624.5,2624.4,4.24636101]
[1724366662736,0.39215982,2624.5,2624.4,2.34041455]
[1724366664235,0.39215982,2624.5,2624.4,4.74591263]
[1724366671847,0.39215982,2624.5,2624.4,3.24680085]
[1724366672043,0.39215982,2624.5,2624.4,4.24669465]
[1724366673547,0.39215982,2624.5,2624.4,4.2467387]
[1724366674044,0.39215982,2624.5,2624.4,2.3408638]
[1724366674259,0.39215982,2624.5,2624.4,1.34097]
[1724366676943,0.39215982,2624.5,2624.4,0.96]
[1724366680263,0.39215982,2624.5,2624.4,1.34097]
[1724366680853,0.39215982,2624.5,2624.4,0.96]
[1724366681047,0.39215982,2624.5,2624.4,1.9598938]
[1724366681453,4.20255982,2624.5,2624.4,0.9998938]
[1724366682358,4.58350982,2624.5,2624.4,0.9998938]
[1724366682961,4.20255982,2624.5,2624.4,0.9998938]
[1724366683451,4.20255982,2624.5,2624.4,2.3408638]
[1724366684060,4.20255982,2624.5,2624.4,1.34097]
[1724366684949,4.20255982,2624.5,2624.4,0.96]
[1724366686262,4.20255982,2624.5,2624.4,1.34097]
[1724366686964,4.20255982,2624.5,2624.4,0.96]
[1724366688663,4.58350982,2624.5,2624.3,0.9998938]
[1724366689061,0.38097,2624.4,2624.1,1.9598938]
[1724366689271,0.3716,2624.3,2624.2,0.38099]
[1724366689458,0.3716,2624.3,2624.2,1.34099]
[1724366691070,0.3716,2624.3,2624.2,0.96]
[1724366692873,0.3716,2624.3,2624.2,1.341]
[1724366693061,0.3716,2624.3,2624.2,0.96]
[1724366694275,0.3716,2624.3,2624.2,1.341]
[1724366694771,0.3716,2624.3,2624.2,0.96]
[1724366695176,0.3716,2624.3,2624.1,0.381]
[1724366695475,0.3772,2624.2,2624.1,1.341]
[1724366696874,0.3772,2624.2,2624.1,2.3408938]
[1724366697061,0.3772,2624.2,2624.1,1.341]
[1724366699279,0.3772,2624.2,2624.1,0.96]
[1724366699676,0.3772,2624.2,2624.1,1.34101]
[1724366700181,0.3772,2624.2,2624.1,0.96]
[1724366700367,0.3772,2624.2,2624.1,1.34101]
[1724366700978,0.38101,2624.1,2624.0,0.00571135]
[1724366701186,0.3501,2624.1,2624.0,0.00571135]
[1724366701380,0.3501,2624.1,2624.0,0.96571135]
[1724366701576,0.7582,2624.2,2624.0,1.34672135]
[1724366701577,0.3772,2624.2,2624.0,1.34672135]
[1724366701784,0.3772,2624.2,2624.1,0.38101]
[1724366702084,0.3798,2624.4,2624.2,0.38098]
[1724366702275,0.3716,2624.3,2624.2,0.38098]
[1724366702784,4.182,2624.3,2624.2,0.38098]
[1724366704588,0.3716,2624.3,2624.2,0.38098]
[1724366704978,0.74,2624.4,2624.2,1.34098]
[1724366705177,1.71361982,2624.5,2624.3,0.7257]
[1724366705382,0.38097,2624.4,2624.3,0.7257]
[1724366705783,4.19137,2624.4,2624.3,0.7257]
[1724366707077,3.8104,2624.4,2624.3,0.7257]
[1724366707385,0.75360982,2624.5,2624.3,2.06667]
[1724366707785,0.37265982,2624.5,2624.4,0.38097]
[1724366707993,0.37265982,2624.5,2624.3,1.6857]
[1724366708393,0.00955982,2624.5,2624.3,1.6857]
[1724366708892,0.00955982,2624.5,2624.4,0.38097]
[1724366711292,0.00955982,2624.5,2624.4,1.34097]
[1724366711488,0.00955982,2624.5,2624.4,2.29339]
[1724366712196,0.00955982,2624.5,2624.4,3.2932838]
[1724366712690,0.00955982,2624.5,2624.4,7.1036838]
[1724366713084,0.00955982,2624.5,2624.4,9.00938079]
[1724366713595,0.00955982,2624.5,2624.4,8.00948699]
[1724366713889,0.00955982,2624.5,2624.4,13.48588507]
[1724366714092,25.3,2625.0,2624.4,14.53228078]
[1724366714297,25.3,2625.0,2624.9,0.96]
[1724366714793,25.3,2625.0,2624.9,1.313]
[1724366714994,25.30367576,2625.0,2624.9,1.69861273]
[1724366719306,25.30367576,2625.0,2624.9,0.35772273]
[1724366721297,25.30367576,2625.0,2624.9,0.00472273]
[1724366721695,25.30367576,2625.0,2624.9,0.38561273]
[1724366722003,25.30367576,2625.0,2624.9,1.34561273]
[1724366726999,29.49415576,2625.0,2624.9,0.00472273]
[1724366727407,30.21795576,2625.0,2624.9,0.00472273]
[1724366728003,29.83707576,2625.0,2624.9,0.00472273]
[1724366728601,30.21795576,2625.0,2624.9,0.00472273]
[1724366729208,29.83707576,2625.0,2624.9,0.00472273]
[1724366730711,30.21795576,2625.0,2624.9,0.00472273]
[1724366730908,35.21795576,2625.0,2624.9,0.00472273]
[1724366731118,36.17015576,2625.0,2624.9,0.00472273]
[1724366731811,0.38093,2624.7,2624.5,1.34095]
[1724366732007,0.7239,2624.6,2624.5,1.34095]
[1724366732203,1.0925,2624.6,2624.5,1.34095]
[1724366732914,1.0925,2624.6,2624.5,1.34553622]
[1724366746111,1.47344,2624.6,2624.5,0.96458622]
[1724366746318,1.47344,2624.6,2624.5,0.00458622]
[1724366746512,1.0925,2624.6,2624.5,0.38553622]
[1724366748120,1.47344,2624.6,2624.5,0.38553622]
[1724366748521,1.0925,2624.6,2624.5,0.38553622]
[1724366748719,1.47344,2624.6,2624.5,0.00458622]
[1724366749920,6.24384,2624.6,2624.5,0.00458622]
[1724366751320,5.28384,2624.6,2624.5,0.00458622]
[1724366751516,0.7239,2624.6,2624.5,0.38553622]
[1724366751717,0.7239,2624.6,2624.5,1.10573622]
[1724366751718,0.3487,2624.6,2624.5,1.10573622]
[1724366751918,0.3487,2624.6,2624.5,1.45113622]
[1724366752324,1.34091,2624.8,2624.7,0.38092]
[1724366752523,1.71001,2624.8,2624.7,0.38092]
[1724366752825,5.51961,2624.8,2624.6,1.34093]
[1724366753032,1.71001,2624.8,2624.6,1.34093]
[1724366753625,0.38092,2624.7,2624.6,1.34093]
[1724366754228,0.38092,2624.7,2624.6,0.96]
[1724366754617,0.38092,2624.7,2624.6,1.34094]
[1724366755430,0.38092,2624.7,2624.6,0.96]
[1724366756025,0.38092,2624.7,2624.6,1.34094]
[1724366756223,0.38092,2624.7,2624.6,0.96]
[1724366757136,0.38092,2624.7,2624.6,1.34094]
[1724366757435,0.38092,2624.7,2624.6,0.96]
[1724366757623,0.38092,2624.7,2624.6,1.34094]
[1724366758227,1.71002,2624.8,2624.6,1.34094]
[1724366758428,0.38092,2624.7,2624.6,1.34094]
[1724366759329,0.38092,2624.7,2624.6,0.96]
[1724366760637,0.38094,2624.6,2624.5,1.07018622]
[1724366761137,5.14369,2624.6,2624.5,0.00458622]
[1724366761325,6.10369,2624.6,2624.5,0.00458622]
[1724366765051,11.10369,2624.6,2624.5,0.00458622]
[1724366766845,6.10369,2624.6,2624.5,0.00458622]
[1724366767455,11.10369,2624.6,2624.5,0.00458622]
[1724366767757,6.10369,2624.6,2624.5,0.00458622]
[1724366768050,5.15134,2624.6,2624.5,0.00458622]
[1724366768847,0.38093,2624.7,2624.5,0.38552622]
[1724366769043,0.38094,2624.6,2624.5,0.72218622]
[1724366773148,0.38094,2624.6,2624.5,0.00458622]
[1724366773465,1.33329,2624.6,2624.5,0.00458622]
[1724366773656,5.14369,2624.6,2624.5,0.00458622]
[1724366774051,30.44369,2624.6,2624.5,0.00458622]
[1724366777566,30.45134,2624.6,2624.5,0.00458622]
[1724366779362,26.64094,2624.6,2624.5,0.37078622]
[1724366782764,30.45134,2624.6,2624.5,0.00458622]
[1724366783471,31.40369,2624.6,2624.5,0.00458622]
[1724366788068,0.38098,2624.3,2624.2,0.75]
[1724366789076,0.38098,2624.3,2624.2,0.75352883]
[1724366790669,1.34098,2624.3,2624.2,0.75352883]
[1724366792673,1.34097,2624.4,2624.2,1.13451883]
[1724366794977,0.38098,2624.3,2624.2,1.13451883]
[1724366797375,0.38098,2624.3,2624.2,0.75352883]
[1724366800878,1.34098,2624.3,2624.2,0.75352883]
[1724366805987,2.29344,2624.3,2624.2,0.37082883]
[1724366811597,2.29344,2624.3,2624.2,0.00352883]
[1724366814104,5.50124,2624.3,2624.2,0.00352883]
[1724366814904,0.3811,2623.5,2623.4,4.20475268]
[1724366815095,0.38111,2623.4,2623.3,0.3787]
[1724366815296,27.01241,2623.4,2623.3,0.3787]
[1724366815596,27.01241,2623.4,2623.1,0.38114]
[1724366815597,0.38112,2623.3,2623.1,0.38114]
[1724366815798,0.96,2623.2,2623.1,0.38395965]
[1724366816007,1.3179,2623.3,2623.2,0.38114]
[1724366816304,0.96,2623.3,2623.2,0.38114]
[1724366816501,0.96,2623.3,2623.2,0.74794]
[1724366817202,26.0464,2623.4,2623.3,0.38112]
[1724366817407,27.0064,2623.4,2623.3,0.76072]
[1724366818013,30.2142,2623.4,2623.3,0.76072]
[1724366818197,25.3,2623.4,2623.3,5.53272]
[1724366820503,26.26,2623.4,2623.3,0.76072]
[1724366820712,26.6237,2623.4,2623.3,0.76072]
[1724366820907,26.6237,2623.4,2623.3,0.38112]
[1724366821115,0.38112,2623.3,2623.2,0.7347]
[1724366821304,27.00482,2623.4,2623.2,1.11583]
[1724366821909,26.26,2623.4,2623.3,0.38112]
[1724366823519,26.64111,2623.4,2623.3,0.38112]
[1724366824601,26.26,2623.4,2623.3,4.19312]
[1724366825008,25.3,2623.4,2623.3,4.19312]
[1724366825411,25.3,2623.4,2623.3,5.15312]
[1724366827118,25.3,2623.4,2623.3,4.19312]
[1724366827417,25.3,2623.4,2623.3,5.15312]
[1724366828215,0.00571135,2623.5,2623.4,0.38111]
[1724366828417,0.00571135,2623.5,2623.4,0.73861]
[1724366828609,0.00571135,2623.5,2623.4,4.55061]
[1724366828808,25.30571135,2623.5,2623.4,4.55061]
[1724366833515,25.68680135,2623.5,2623.4,4.55061]
[1724366833716,25.68680135,2623.5,2623.4,4.1695]
[1724366834618,25.68680135,2623.5,2623.4,0.3575]
[1724366835518,25.68680135,2623.5,2623.4,4.1695]
[1724366836019,25.68680135,2623.5,2623.4,0.3575]
[1724366836520,25.68682135,2623.5,2623.3,0.38112]
[1724366836727,25.68682135,2623.5,2623.3,1.34112]
[1724366837018,26.05542135,2623.5,2623.3,1.34112]
[1724366837218,26.05542135,2623.5,2623.4,0.38111]
[1724366837622,26.05542135,2623.5,2623.3,1.34111]
[1724366839118,0.38111,2623.4,2623.3,1.34111]
[1724366839718,0.38111,2623.4,2623.3,0.38111]
[1724366843327,26.40372135,2623.5,2623.3,0.38111]
[1724366843518,0.38111,2623.4,2623.3,0.38111]
[1724366844126,0.38111,2623.4,2623.3,1.34111]
[1724366844728,26.40372135,2623.5,2623.4,0.38111]
[1724366845031,26.40372135,2623.5,2623.3,1.34111]
[1724366851228,26.40372135,2623.5,2623.4,0.38111]
[1724366851635,26.40372135,2623.5,2623.3,1.34111]
[1724366852529,0.38111,2623.4,2623.3,1.34111]
[1724366852719,26.02261135,2623.5,2623.1,0.38395965]
[1724366852720,26.98261135,2623.5,2623.1,0.38395965]
[1724366852922,26.98261135,2623.5,2623.1,0.00281965]
[1724366852923,0.38114,2623.2,2623.1,0.00281965]
[1724366853934,0.3732,2623.3,2623.1,0.38396965]
[1724366854127,0.38114,2623.2,2623.1,0.38396965]
[1724366854736,0.75433,2623.3,2623.1,4.19596965]
[1724366854927,0.75433,2623.3,2623.1,0.38396965]
[1724366855832,0.75433,2623.3,2623.2,0.38114]
[1724366856424,0.3732,2623.3,2623.2,0.38114]
[1724366859431,0.3483,2623.5,2623.4,0.38111]
[1724366860527,23.4483,2623.5,2623.4,0.38111]
[1724366861430,23.4483,2623.5,2623.4,1.34111]
[1724366862030,23.4483,2623.5,2623.4,2.33806268]
[1724366863135,23.1,2623.5,2623.4,2.33806268]
[1724366863433,23.1,2623.5,2623.4,2.68536268]
[1724366866338,23.1,2623.5,2623.4,4.59203115]
[1724366866534,23.1,2623.5,2623.4,2.68536268]
[1724366866729,23.1,2623.5,2623.4,4.59203287]
[1724366866931,23.1,2623.5,2623.4,2.68536268]
[1724366867126,23.1,2623.5,2623.4,4.59203242]
[1724366867543,23.1,2623.5,2623.4,2.68536268]
[1724366868144,23.1,2623.5,2623.4,4.59203029]
[1724366868534,23.1,2623.5,2623.4,2.68536268]
[1724366868742,23.1,2623.5,2623.4,4.59201847]
[1724366869041,23.1,2623.5,2623.4,2.68536268]
[1724366869241,23.1,2623.5,2623.4,1.68841]
[1724366870042,23.1,2623.5,2623.4,2.68536268]
[1724366871033,23.1,2623.5,2623.4,6.49736268]
[1724366871741,0.36161135,2623.7,2623.6,0.38108]
[1724366871932,0.00571135,2623.7,2623.6,6.15217603]
[1724366872134,23.10571135,2623.7,2623.6,6.51697603]
[1724366872340,23.10571135,2623.7,2623.6,6.88347603]
[1724366873546,23.10571135,2623.7,2623.6,5.88358]
[1724366876247,23.10571135,2623.7,2623.6,6.88347603]
[1724366877541,23.10571135,2623.7,2623.6,5.88358]
[1724366879151,23.10571135,2623.7,2623.6,5.51878]
[1724366881249,23.10571135,2623.7,2623.6,6.51867603]
[1724366881653,23.10571135,2623.7,2623.6,5.51878]
[1724366887759,23.10571135,2623.7,2623.6,4.7712]
[1724366887954,23.10571135,2623.7,2623.6,0.96]
[1724366888153,24.44678135,2623.7,2623.4,2.34099603]
[1724366888354,0.73789,2623.6,2623.3,0.38111]
[1724366888560,0.366,2623.5,2623.4,1.34111]
[1724366888757,0.366,2623.5,2623.4,0.96]
[1724366888951,23.466,2623.5,2623.4,1.34111]
[1724366891357,0.00571135,2623.7,2623.6,1.33379]
[1724366891557,0.00571135,2623.7,2623.6,2.33242423]
[1724366891866,0.00571135,2623.7,2623.6,8.54675613]
[1724366892962,1.35e-06,2623.7,2623.6,9.6941272]
[1724366893358,0.3836,2624.1,2624.0,1.33358]
[1724366893556,0.3836,2624.1,2624.0,1.34102]
[1724366894064,0.3836,2624.1,2624.0,1.69782]
[1724366895060,0.3836,2624.1,2624.0,5.50902]
[1724366895363,23.4784,2624.2,2624.1,0.38101]
[1724366896357,23.8422,2624.2,2624.1,0.38101]
[1724366899263,0.00571135,2624.3,2624.2,0.38099]
[1724366899466,0.00571135,2624.3,2624.2,1.70579]
[1724366899869,23.10571135,2624.3,2624.2,5.51619]
[1724366900364,0.00571135,2624.3,2624.2,5.51619]
[1724366901262,0.00571135,2624.3,2624.2,5.15139]
[1724366901463,0.00571135,2624.3,2624.2,5.51619]
[1724366902768,0.00571135,2624.3,2624.2,6.46868]
[1724366905857,0.37821135,2624.3,2624.2,6.46868]
[1724366906263,0.37821135,2624.3,2624.2,1.34099]
[1724366908272,0.37821135,2624.3,2624.2,5.15139]
[1724366908577,0.37821135,2624.3,2624.2,1.34099]
[1724366910877,0.37821135,2624.3,2624.2,0.38099]
[1724366911378,0.37821135,2624.3,2624.2,1.34099]
[1724366914472,0.37821135,2624.3,2623.8,2.25304173]
[1724366914473,4.18861135,2624.3,2624.1,1.341]
[1724366914680,1.7111,2624.2,2623.8,0.96]
[1724366914977,0.38101,2624.1,2623.8,0.96]
[1724366915180,0.38101,2624.1,2623.8,1.34105]
[1724366915674,2.0921,2624.2,2623.8,1.34105]
[1724366916279,1.7111,2624.2,2623.8,0.96]
[1724366916582,0.38101,2624.1,2623.8,1.34105]
[1724366916970,2.0921,2624.2,2623.8,1.34105]
[1724366918880,2.0921,2624.2,2623.9,0.38104]
[1724366919281,5.9033,2624.2,2623.9,0.38104]
[1724366921179,5.5223,2624.2,2623.9,0.38104]
[1724366921907,1.7111,2624.2,2623.9,0.38104]
[1724366922189,5.5223,2624.2,2623.9,0.38104]
[1724366922384,0.96,2624.0,2623.8,0.38104]
[1724366922584,1.3368,2623.9,2623.2,7.28811551]
[1724366922789,0.96,2623.6,2623.5,0.38108]
[1724366923180,4.772,2623.6,2623.5,0.38108]
[1724366925179,26.912,2623.6,2623.5,0.38108]
[1724366925380,23.1,2623.6,2623.5,0.38108]
[1724366925586,26.912,2623.6,2623.5,0.38108]
[1724366937991,23.1,2623.6,2623.5,0.38108]
[1724366938182,26.912,2623.6,2623.5,0.38108]
[1724366938497,23.1,2623.6,2623.5,5.15308]